bitfinex/quotes_ETHUSD_20241109
["timestamp","ask_amount","ask_price","bid_price","bid_amount"]
[1731186455341,0.783,3078.2,3077.5,1.19675722]
[1731186455529,0.55,3078.1,3077.5,1.19675722]
[1731186456100,0.04719653,3078.0,3077.5,1.19675722]
[1731186459107,0.04719653,3078.0,3077.5,0.8937252]
[1731186463695,0.55,3077.9,3077.5,0.1421252]
[1731186463827,0.55,3077.7,3077.5,0.1421252]
[1731186464023,0.59652296,3077.6,3077.5,0.1421252]
[1731186464212,0.78947526,3077.6,3077.5,0.1421252]
[1731186468859,2.29358495,3077.6,3077.5,0.1421252]
[1731186470312,2.29346403,3077.6,3077.5,0.1421252]
[1731186470966,0.78947526,3077.6,3077.5,0.1421252]
[1731186472158,2.29348545,3077.6,3077.5,0.1421252]
[1731186472968,1.43405242,3077.6,3077.5,0.1421252]
[1731186473158,0.59652296,3077.6,3077.5,0.1421252]
[1731186473486,1.43447471,3077.6,3077.5,0.1421252]
[1731186473854,2.10095544,3077.6,3077.5,0.1421252]
[1731186474378,2.10093111,3077.6,3077.5,0.1421252]
[1731186474594,5.93421598,3077.6,3077.5,0.1421252]
[1731186475323,5.934144,3077.6,3077.5,0.1421252]
[1731186475511,6.05154815,3077.6,3077.5,0.1421252]
[1731186475821,7.38445708,3077.6,3077.5,0.1421252]
[1731186477912,6.05154815,3077.6,3077.5,0.1421252]
[1731186478112,0.8843784,3077.6,3077.5,0.1421252]
[1731186478581,0.04652296,3077.6,3077.5,0.1421252]
[1731186480108,0.88429923,3077.6,3077.5,0.1421252]
[1731186480420,1.55980407,3077.6,3077.5,0.1421252]
[1731186484933,0.72199541,3077.6,3077.5,0.1421252]
[1731186485236,1.56039326,3077.6,3077.5,0.1421252]
[1731186485591,0.88492081,3077.6,3077.5,0.1421252]
[1731186487018,1.56107758,3077.6,3077.5,0.1421252]
[1731186488731,0.88492081,3077.6,3077.5,0.1421252]
[1731186489520,1.56122445,3077.6,3077.5,0.1421252]
[1731186489722,0.88492081,3077.6,3077.5,0.1421252]
[1731186490039,0.88540539,3077.6,3077.5,0.1421252]
[1731186490213,1.56171598,3077.6,3077.5,0.1421252]
[1731186490625,0.88540539,3077.6,3077.5,0.1421252]
[1731186491143,1.89854235,3077.6,3077.5,0.1421252]
[1731186492402,1.89854235,3077.6,3077.5,0.75036733]
[1731186492603,0.88540539,3077.6,3077.5,0.75036733]
[1731186493056,3.69856576,3077.6,3077.5,0.75036733]
[1731186493341,5.13712055,3077.6,3077.5,0.1421252]
[1731186494952,3.80421162,3077.6,3077.5,0.1421252]
[1731186495141,5.15715574,3077.6,3077.5,0.1421252]
[1731186496051,3.80430687,3077.6,3077.5,0.1421252]
[1731186496853,3.35695768,3077.6,3077.5,0.1421252]
[1731186497017,1.90006943,3077.6,3077.5,0.1421252]
[1731186497814,1.90006943,3077.6,3077.5,0.92309483]
[1731186498158,0.04652296,3077.6,3077.5,0.92309483]
[1731186498340,1.01456879,3078.1,3077.5,0.92309483]
[1731186498341,0.67644128,3078.1,3077.5,0.92309483]
[1731186498540,0.67644128,3078.1,3078.0,0.7818]
[1731186498745,1.51574785,3078.1,3078.0,0.7818]
[1731186499122,0.67644128,3078.2,3078.0,0.7818]
[1731186499341,0.67644128,3078.3,3078.0,1.28859104]
[1731186501224,0.67644128,3078.4,3078.0,1.28859104]
[1731186501622,0.83883958,3078.3,3078.0,0.7818]
[1731186501933,0.67644128,3078.4,3078.0,0.7818]
[1731186502332,0.8388632,3078.3,3078.0,0.7818]
[1731186502539,0.67644128,3078.4,3078.0,0.7818]
[1731186502835,0.83887312,3078.3,3078.0,0.7818]
[1731186503045,0.67644128,3078.4,3078.0,0.7818]
[1731186503352,0.67644128,3078.4,3078.1,0.60676334]
[1731186503550,0.67644128,3078.4,3078.2,0.60676334]
[1731186503736,0.67644128,3078.4,3078.3,0.60676334]
[1731186503940,1.51510648,3078.4,3078.1,0.60676334]
[1731186504244,0.67644128,3078.4,3078.2,0.60676334]
[1731186504581,1.01456879,3078.6,3078.2,0.60676334]
[1731186504582,0.67644128,3078.5,3078.4,0.7818]
[1731186504752,0.67644128,3078.6,3078.4,1.38856334]
[1731186505089,1.01456879,3078.8,3078.4,1.38856334]
[1731186505090,0.67644128,3078.7,3078.5,3.27293527]
[1731186506352,1.01456879,3078.8,3078.5,3.27293527]
[1731186506353,0.67644128,3078.8,3078.6,0.7818]
[1731186506556,1.35267422,3079.1,3078.8,0.7818]
[1731186506557,0.67644128,3079.1,3078.8,0.7818]
[1731186506774,0.67644128,3079.3,3079.0,2.66617193]
[1731186506956,1.51565723,3079.2,3079.0,3.27293527]
[1731186507154,0.67644128,3079.2,3079.0,2.66617193]
[1731186507358,0.83912626,3079.1,3079.0,2.66617193]
[1731186507545,0.67644128,3079.2,3079.0,2.66617193]
[1731186508975,0.67644128,3079.3,3079.0,2.66617193]
[1731186509188,0.83914421,3079.2,3079.0,2.66617193]
[1731186509484,0.67644128,3079.3,3079.0,2.66617193]
[1731186509646,0.67644128,3079.3,3078.6,0.5044487]
[1731186509647,0.84554229,3079.3,3078.7,0.60533844]
[1731186509984,0.84554229,3079.3,3078.4,1.2862487]
[1731186509985,0.67644128,3078.9,3078.4,1.2862487]
[1731186510189,1.5156799,3078.8,3078.5,0.30257645]
[1731186510345,0.67644128,3078.8,3078.6,0.30257645]
[1731186510682,0.67644128,3078.8,3078.7,0.30257645]
[1731186510886,1.51589131,3078.8,3078.4,0.7818]
[1731186511185,0.67644128,3078.8,3078.7,0.30255493]
[1731186511488,1.51595367,3078.8,3078.7,0.30255493]
[1731186511783,1.13367604,3078.8,3078.7,0.30255493]
[1731186512145,1.81053992,3078.8,3078.7,0.30255493]
[1731186513669,1.55748767,3078.8,3078.7,0.30255493]
[1731186514794,0.88062379,3078.8,3078.7,0.30255493]
[1731186515176,0.8802688,3078.8,3078.7,0.30255493]
[1731186515392,1.55637418,3078.8,3078.7,0.30255493]
[1731186516772,0.0411114,3078.8,3078.7,0.30255493]
[1731186517471,0.67610538,3078.9,3078.7,0.30252574]
[1731186517778,0.21017882,3078.8,3078.5,0.48404119]
[1731186517982,0.0411114,3078.8,3078.4,0.7818]
[1731186518197,0.0411114,3078.8,3078.5,0.48405219]
[1731186518385,0.0411114,3078.8,3078.6,0.30253262]
[1731186518709,0.0411114,3078.8,3078.5,0.48405219]
[1731186519007,0.0411114,3078.8,3078.6,0.48407915]
[1731186519308,0.67610538,3079.0,3078.5,0.48407915]
[1731186519611,0.04108705,3078.7,3078.5,0.48407915]
[1731186519796,0.8451728,3079.0,3078.5,0.48407915]
[1731186520101,0.0410525,3078.6,3078.4,0.7818]
[1731186520406,0.8451728,3079.0,3078.4,0.7818]
[1731186520407,0.8451728,3079.0,3078.5,0.48421369]
[1731186520612,0.96537416,3078.9,3078.6,0.48421369]
[1731186520810,0.96537416,3078.9,3078.2,0.72632965]
[1731186521118,0.96537416,3078.9,3078.3,0.48421984]
[1731186521271,0.16414795,3078.8,3078.4,0.48421984]
[1731186521595,0.16414795,3078.8,3078.5,0.48421984]
[1731186521798,0.16414795,3078.8,3078.6,0.48431056]
[1731186522096,0.16414795,3078.8,3078.3,0.48432001]
[1731186522296,0.16414795,3078.8,3078.4,0.48432001]
[1731186522466,0.16414795,3078.8,3078.5,0.48432001]
[1731186522668,0.16414795,3078.8,3078.2,0.24210947]
[1731186522893,0.16414795,3078.8,3078.3,0.48442601]
[1731186523067,0.16414795,3078.8,3078.4,0.48442601]
[1731186523271,0.16414795,3078.8,3078.5,0.48442601]
[1731186523469,0.16414795,3078.8,3078.6,0.48442601]
[1731186523695,0.16414795,3078.8,3078.3,0.24229574]
[1731186523903,0.16414795,3078.8,3078.4,0.48459177]
[1731186524201,0.16414795,3078.8,3078.5,1.24579009]
[1731186524410,0.67610538,3079.0,3078.7,2.66617193]
[1731186524565,0.67610538,3079.1,3078.8,0.48479009]
[1731186524762,0.67610538,3079.1,3078.7,2.66617193]
[1731186524986,1.05174927,3079.1,3078.8,0.48479702]
[1731186525197,0.37564389,3079.1,3078.9,0.48506967]
[1731186525396,0.37564389,3079.1,3078.7,2.66617193]
[1731186525603,0.37564389,3079.1,3078.8,0.48507039]
[1731186525801,0.37564389,3079.1,3078.9,0.48507039]
[1731186526011,0.37564389,3079.1,3078.6,0.60598762]
[1731186526209,0.37564389,3079.1,3078.7,1.09105373]
[1731186526413,0.37564389,3079.1,3078.5,0.761]
[1731186526414,0.37564389,3079.1,3078.8,0.48506611]
[1731186526702,0.37564389,3079.1,3078.9,0.48506611]
[1731186526915,0.04123127,3079.0,3078.7,0.60677241]
[1731186527063,0.67610538,3079.2,3078.8,0.48542013]
[1731186527266,0.59126581,3079.1,3078.9,0.48542013]
[1731186527497,0.59126581,3079.1,3079.0,0.48542013]
[1731186527705,0.91430991,3079.1,3079.0,0.48542013]
[1731186527886,0.91430991,3079.1,3078.5,0.761]
[1731186528089,1.59041529,3079.1,3078.8,0.60720364]
[1731186528290,2.06360681,3079.0,3078.9,0.48578289]
[1731186528487,2.06360681,3079.0,3078.6,0.60720364]
[1731186528488,0.55,3078.9,3078.6,0.60720364]
[1731186528703,0.55,3078.9,3078.7,0.48599239]
[1731186528704,0.04122937,3078.8,3078.7,0.48599239]
[1731186528869,0.59122937,3078.8,3078.7,0.48599239]
[1731186529070,0.8128877,3078.8,3078.7,0.48599239]
[1731186529470,0.8128877,3078.8,3078.7,0.48605954]
[1731186529802,0.59122937,3078.8,3078.7,1.09362918]
[1731186530011,0.59122937,3078.8,3078.7,0.48605954]
[1731186530712,1.37062937,3078.8,3078.7,0.48605954]
[1731186530865,2.20819762,3078.8,3078.7,0.48605954]
[1731186531065,2.20819762,3078.8,3078.2,1.26731202]
[1731186531066,0.55,3078.7,3078.2,0.761]
[1731186531382,0.04115961,3078.6,3078.3,0.60764665]
[1731186531525,0.04115961,3078.6,3078.2,1.26737221]
[1731186531526,0.04115961,3078.6,3078.4,1.09378741]
[1731186531730,0.24582611,3078.6,3078.5,0.48614076]
[1731186531932,0.79582611,3078.6,3078.5,0.48614076]
[1731186532100,3.08910262,3078.6,3078.5,0.48614076]
[1731186532306,0.55,3078.5,3077.8,0.50637221]
[1731186532490,0.67539856,3078.3,3077.9,1.09386353]
[1731186532689,0.67539856,3078.3,3078.0,1.09386353]
[1731186532690,0.04100434,3078.2,3078.0,1.09386353]
[1731186532928,0.04100434,3078.2,3078.1,0.48616157]
[1731186533126,0.67539856,3078.3,3078.1,0.48616157]
[1731186533429,0.67539856,3078.3,3077.7,0.761]
[1731186533430,1.22539856,3078.3,3078.2,0.48616157]
[1731186533603,2.4055391,3078.3,3078.2,0.48616157]
[1731186534203,2.4055391,3078.3,3077.7,0.761]
[1731186534533,1.56747715,3078.3,3078.2,0.48592499]
[1731186534695,2.40514073,3078.3,3078.2,0.48592499]
[1731186535324,1.72974217,3078.3,3078.2,0.48592499]
[1731186535495,1.3465,3078.2,3077.5,4.11833862]
[1731186535694,1.3465,3078.2,3077.6,1.09313422]
[1731186535695,1.51313919,3078.1,3077.6,1.09313422]
[1731186535995,1.51313919,3078.0,3077.7,1.09313422]
[1731186536194,1.51313919,3078.0,3077.8,0.48583743]
[1731186536195,0.55,3077.9,3077.8,0.48583743]
[1731186536444,2.1843753,3077.9,3077.8,0.48583743]
[1731186536731,2.1843753,3077.9,3077.5,0.14129483]
[1731186536732,3.05125384,3077.9,3077.5,0.14129483]
[1731186536931,0.55,3077.7,3077.6,0.48565411]
[1731186537533,0.55,3077.7,3077.6,0.48548113]
[1731186537907,0.55,3077.7,3077.5,0.14129483]
[1731186538120,0.55,3077.7,3077.6,0.48548423]
[1731186538805,0.67548057,3077.9,3077.6,0.48548423]
[1731186539013,0.67548057,3077.9,3077.7,0.48548423]
[1731186539238,1.22548057,3077.9,3077.8,0.48548423]
[1731186539441,2.67119012,3077.9,3077.8,0.48548423]
[1731186539593,2.67119012,3077.9,3077.5,0.14129483]
[1731186539594,1.99570955,3077.9,3077.5,0.14129483]
[1731186539944,0.55,3077.7,3077.5,0.14129483]
[1731186540092,0.55,3077.7,3077.6,0.48532551]
[1731186540293,1.22554045,3077.7,3077.6,0.48531533]
[1731186540541,2.43196503,3077.7,3077.6,0.48531533]
[1731186540923,2.43196503,3077.7,3077.5,0.14129483]
[1731186540924,3.22846503,3077.7,3077.5,0.14129483]
[1731186541095,1.51338957,3077.6,3077.5,0.14129483]
[1731186541300,1.51338957,3077.6,3077.5,0.62663284]
[1731186541301,0.83784912,3077.6,3077.5,0.62663284]
[1731186541638,1.87986588,3077.6,3077.5,0.14129483]
[1731186541847,2.93509999,3077.6,3077.5,0.14129483]
[1731186542741,2.7170312,3077.6,3077.5,0.14129483]
[1731186542905,8.18681353,3077.6,3077.5,0.14129483]
[1731186543406,8.52292565,3077.6,3077.5,0.14129483]
[1731186543606,8.18435008,3077.6,3077.5,0.14129483]
[1731186544538,6.83413931,3077.6,3077.5,0.14129483]
[1731186545038,6.83362293,3077.6,3077.5,0.14129483]
[1731186545336,6.72912806,3077.6,3077.5,0.14129483]
[1731186545545,5.71651482,3077.6,3077.5,0.14129483]
[1731186545744,6.39137837,3077.6,3077.5,0.14129483]
[1731186545944,6.72912806,3077.6,3077.5,0.14129483]
[1731186546643,6.83248896,3077.6,3077.5,0.14129483]
[1731186547653,6.72823403,3077.6,3077.5,0.14129483]
[1731186549338,5.71651482,3077.6,3077.5,0.14129483]
[1731186550045,5.71537844,3077.6,3077.5,0.14129483]
[1731186550266,6.72709765,3077.6,3077.5,0.14129483]
[1731186550417,5.71537844,3077.6,3077.5,0.14129483]
[1731186550738,6.72709765,3077.6,3077.5,0.14129483]
[1731186551459,5.71537844,3077.6,3077.5,0.14129483]
[1731186552161,6.38941362,3077.6,3077.5,0.14129483]
[1731186553770,0.59066532,3077.6,3077.5,0.14129483]
[1731186556619,0.04066532,3077.6,3077.5,0.14129483]
[1731186556850,12.36,3077.8,3077.5,2.1995358]
[1731186557057,0.04061276,3077.6,3077.5,2.1995358]
[1731186557257,12.36,3077.8,3077.5,2.68402576]
[1731186557417,0.04062777,3077.6,3077.5,0.96809483]
[1731186557621,12.36,3077.8,3077.5,0.96809483]
[1731186557622,12.36,3077.8,3077.5,1.45263153]
[1731186557847,0.04062777,3077.6,3077.5,0.96809483]
[1731186558015,12.36,3077.8,3077.5,1.45262275]
[1731186558220,0.04063119,3077.6,3077.5,1.45262275]
[1731186558521,0.04063119,3077.6,3077.5,1.45281899]
[1731186558747,0.55,3078.0,3077.5,1.45281899]
[1731186558952,0.55,3078.0,3077.6,0.48472416]
[1731186559137,0.55,3078.0,3077.5,0.96809483]
[1731186559322,0.55,3078.0,3077.6,0.48492083]
[1731186559323,0.97240352,3078.0,3077.6,0.48492083]
[1731186559522,0.97240352,3078.0,3077.5,0.96809483]
[1731186559795,0.55,3077.8,3077.6,0.48496197]
[1731186560060,0.55,3077.8,3077.5,0.14129483]
[1731186560434,0.55,3077.6,3077.5,0.14129483]
[1731186560633,0.55,3077.6,3077.5,0.62654526]
[1731186561019,0.55,3077.6,3077.5,0.14129483]
[1731186561219,1.3517,3077.6,3077.5,0.14129483]
[1731186562350,5.86184075,3077.6,3077.5,0.14129483]
[1731186562547,6.5694541,3077.6,3077.5,0.14129483]
[1731186565057,6.56940677,3077.6,3077.5,0.14129483]
[1731186565262,5.89539761,3077.6,3077.5,0.14129483]
[1731186566136,6.90711682,3077.6,3077.5,0.14129483]
[1731186566857,5.89539761,3077.6,3077.5,0.14129483]
[1731186567065,6.90711682,3077.6,3077.5,0.14129483]
[1731186567357,8.36030445,3077.6,3077.5,0.14129483]
[1731186568129,8.36030445,3077.6,3077.0,0.60791388]
[1731186568353,8.36030445,3077.6,3076.9,0.35319073]
[1731186568354,0.55,3077.2,3077.1,0.48637289]
[1731186569462,1.38633821,3077.2,3077.1,0.48645088]
[1731186569642,0.55,3077.2,3077.1,0.48645088]
[1731186571067,1.22432164,3077.3,3077.1,0.48645088]
[1731186571222,2.06112102,3077.2,3076.9,0.35319073]
[1731186571428,0.55,3077.1,3077.0,1.09445137]
[1731186571823,0.590416,3077.1,3077.0,1.09445137]
[1731186572065,1.42711534,3077.1,3077.0,1.09445137]
[1731186572243,0.590416,3077.1,3077.0,1.09445137]
[1731186573175,2.10141901,3077.1,3077.0,0.48642283]
[1731186573382,2.40385082,3077.1,3077.0,1.09441425]
[1731186574933,2.40466147,3077.1,3077.0,0.48642283]
[1731186575143,2.74101165,3077.1,3077.0,0.48642283]
[1731186575448,2.74228156,3077.1,3077.0,0.48642283]
[1731186577143,2.84841396,3077.1,3077.0,0.48642283]
[1731186577347,2.84841396,3077.1,3077.0,0.48632799]
[1731186577583,2.54598215,3077.1,3077.0,0.48632799]
[1731186577849,0.87836728,3077.1,3077.0,0.48632799]
[1731186578276,1.89214584,3077.1,3077.0,1.09421532]
[1731186578477,1.89214584,3077.1,3077.0,1.3981478]
[1731186580578,1.89283522,3077.1,3077.0,1.3981478]
[1731186580762,1.89283522,3077.1,3076.9,0.35319073]
[1731186580963,0.83864066,3077.0,3076.9,0.35319073]
[1731186581189,1.89280064,3077.0,3076.9,1.75122909]
[1731186581662,0.04038142,3077.0,3076.9,4.05704385]
[1731186581862,0.71698674,3077.0,3076.9,3.75874895]
[1731186583198,0.04038142,3077.0,3076.9,3.75874895]
[1731186584308,0.67660532,3077.3,3077.0,0.7638]
[1731186584487,0.67660532,3077.3,3077.2,1.23171986]
[1731186584664,0.67660532,3077.3,3077.2,2.62975822]
[1731186585060,0.67660532,3077.3,3077.2,1.39803836]
[1731186585266,13.37377856,3077.4,3077.2,1.39803836]
[1731186585492,13.37377856,3077.4,3077.3,1.39803836]
[1731186586768,13.41429899,3077.4,3077.3,1.39803836]
[1731186587310,13.41429899,3077.4,3077.0,1.99551986]
[1731186587478,0.6768392,3077.2,3077.1,1.64089821]
[1731186587685,0.6768392,3077.3,3077.1,1.64089821]
[1731186587891,0.04045127,3077.2,3077.0,2.23039092]
[1731186588091,0.04045127,3077.2,3077.1,1.09404137]
[1731186588295,0.6768392,3077.3,3077.1,1.3979415]
[1731186588615,0.6768392,3077.3,3077.0,2.23039092]
[1731186588616,0.04045127,3077.2,3077.0,2.23039092]
[1731186588810,0.6768392,3077.3,3077.1,1.39813777]
[1731186589114,0.6768392,3077.3,3077.0,2.23039092]
[1731186589115,0.6768392,3077.3,3077.2,1.39813777]
[1731186590904,0.6768392,3077.3,3077.2,1.39822893]
[1731186592999,1.01377856,3077.4,3077.2,1.39822893]
[1731186593314,0.67678061,3077.3,3077.0,2.23039092]
[1731186593691,0.67678061,3077.3,3077.1,1.39795017]
[1731186593892,0.67678061,3077.3,3077.2,1.39795017]
[1731186594517,1.01377856,3077.4,3077.0,2.23039092]
[1731186594819,0.67675515,3077.3,3077.1,1.39787603]
[1731186594992,0.67675515,3077.3,3077.2,2.62959589]
[1731186595399,0.67675515,3077.3,3077.2,1.39787603]
[1731186596839,0.67675515,3077.3,3077.2,3.39389589]
[1731186597137,0.67675515,3077.4,3077.2,3.75677259]
[1731186597333,1.01377856,3077.5,3077.3,1.39787603]
[1731186597334,0.67675515,3077.5,3077.3,1.39787603]
[1731186597540,0.67675515,3077.5,3077.2,2.35889656]
[1731186597541,0.67675515,3077.5,3077.4,1.39787603]
[1731186597994,1.01377856,3077.7,3077.4,1.09362863]
[1731186597995,0.67675515,3077.6,3077.4,1.09362863]
[1731186598194,0.67675515,3077.6,3077.2,2.35889656]
[1731186598395,0.67675515,3077.6,3077.5,0.91134282]
[1731186598619,0.67675515,3077.6,3077.5,1.39739232]
[1731186600899,0.67675515,3077.6,3077.5,1.39717706]
[1731186601899,0.71603438,3077.6,3077.5,2.16147706]
[1731186602100,0.03927923,3077.6,3077.5,5.22646138]
[1731186602299,0.03927923,3077.6,3077.5,7.19116659]
[1731186602596,0.67675515,3078.6,3077.8,0.7643]
[1731186602804,0.67675515,3078.5,3078.1,1.23171986]
[1731186603026,0.67675515,3078.5,3078.2,1.39717706]
[1731186603337,0.67675515,3078.5,3078.3,0.78970877]
[1731186603537,1.97593193,3078.5,3078.4,0.78970877]
[1731186603839,3.42881248,3078.5,3078.4,0.303364]
[1731186604335,1.97570958,3078.5,3078.4,0.303364]
[1731186604697,2.52570958,3078.5,3078.4,0.303364]
[1731186606331,2.52539263,3078.5,3078.4,0.303364]
[1731186606940,3.97785905,3078.5,3078.0,0.4852093]
[1731186607141,0.67546976,3078.2,3078.1,0.30327292]
[1731186607511,0.67546976,3078.2,3078.1,0.30328051]
[1731186608803,1.43307756,3078.2,3078.1,0.30328051]
[1731186609008,1.77081244,3078.2,3078.1,0.30328051]
[1731186609202,2.56391244,3078.2,3078.1,0.30328051]
[1731186609406,0.55,3078.1,3077.7,0.48542591]
[1731186609624,0.67536109,3077.9,3077.8,0.30339229]
[1731186609850,0.89920136,3077.9,3077.8,0.30339229]
[1731186610027,0.22384027,3077.9,3077.8,0.30339229]
[1731186610242,0.89928216,3077.9,3077.8,0.30339229]
[1731186610440,0.22384027,3077.9,3077.8,0.30339229]
[1731186611435,0.22384027,3077.9,3077.8,0.30351443]
[1731186612444,1.2368819,3077.9,3077.8,0.30351443]
[1731186614058,1.2368819,3077.9,3077.8,0.30359887]
[1731186616929,1.27097309,3077.9,3077.8,0.30359887]
[1731186617661,1.27097309,3077.9,3077.3,0.7643]
[1731186617868,0.67578283,3077.8,3077.4,0.60731109]
[1731186618032,0.67578283,3077.8,3077.5,0.91096605]
[1731186618033,0.70983945,3077.8,3077.5,0.91096605]
[1731186618233,0.70983945,3077.8,3077.6,0.30365496]
[1731186618467,0.03405662,3077.8,3077.7,0.30365496]
[1731186618668,0.03405662,3077.8,3077.7,1.73315282]
[1731186618872,0.67584755,3078.1,3077.7,2.02964009]
[1731186619038,0.67584755,3078.1,3077.8,0.91095282]
[1731186619236,0.67584755,3078.1,3077.9,0.30365496]
[1731186619439,0.67584755,3078.1,3078.0,0.30365496]
[1731186624085,1.01304163,3078.2,3078.0,2.35757482]
[1731186624086,0.67584755,3078.2,3078.0,2.35757482]
[1731186624302,0.67584755,3078.3,3078.1,1.1467163]
[1731186624510,0.67584755,3078.3,3078.2,0.30365496]
[1731186625487,0.67584755,3078.3,3078.2,0.91095115]
[1731186625716,0.67584755,3078.4,3078.2,0.91095115]
[1731186625895,0.67584755,3078.4,3078.3,0.30365496]
[1731186627129,0.67584755,3078.4,3078.0,2.05391986]
[1731186627334,0.67584755,3078.4,3078.3,0.3036385]
[1731186627542,0.67584755,3078.4,3078.1,0.50903049]
[1731186627824,0.67584755,3078.4,3078.2,0.91086115]
[1731186627999,0.67584755,3078.4,3078.3,0.30362095]
[1731186628627,0.67584755,3078.4,3078.3,0.30360875]
[1731186628929,0.67584755,3078.4,3078.3,0.30360876]
[1731186629708,0.67584755,3078.4,3078.3,0.30359184]
[1731186630997,0.67584755,3078.4,3078.3,0.60718172]
[1731186631724,0.16888892,3078.4,3078.3,0.60718172]
[1731186631911,2.92439952,3078.4,3077.6,0.8222]
[1731186632110,0.67559227,3078.0,3077.6,0.8222]
[1731186632313,0.67559227,3078.1,3077.6,0.8222]
[1731186632619,0.73941948,3078.0,3077.6,0.8222]
[1731186633789,0.73941948,3078.0,3077.7,0.91109844]
[1731186633993,0.73941948,3078.0,3077.8,0.30369948]
[1731186634233,0.06382721,3078.0,3077.9,0.30369948]
[1731186634524,1.07721562,3078.0,3077.9,0.30369948]
[1731186634730,1.32005564,3078.0,3077.9,0.30369948]
[1731186634929,0.30666723,3078.0,3077.9,0.30369948]
[1731186635138,1.07678604,3078.0,3077.9,0.30369948]
[1731186636109,1.07678604,3078.0,3077.6,0.8222]
[1731186636314,1.07678604,3078.0,3077.9,0.30373084]
[1731186636599,1.07678604,3078.0,3077.9,0.30375372]
[1731186637038,0.06382721,3078.0,3077.9,0.30375372]
[1731186637436,1.18113207,3078.0,3077.9,0.30375372]
[1731186638438,0.06382721,3078.0,3077.9,0.30375372]
[1731186638740,0.83412721,3078.0,3077.9,0.30375372]
[1731186638912,2.68442912,3078.0,3077.9,0.30375372]
[1731186639112,3.80173398,3078.0,3077.9,0.30375372]
[1731186640038,3.80173398,3078.0,3077.9,0.30375564]
[1731186640536,4.35173398,3078.0,3077.9,0.30375564]
[1731186640742,3.80173398,3078.0,3077.9,0.30375564]
[1731186641102,2.45054943,3078.0,3077.9,0.30375564]
[1731186641538,3.80173398,3078.0,3077.9,0.30375564]
[1731186642606,3.80244649,3078.0,3077.9,0.30375564]
[1731186646210,2.45054943,3078.0,3077.9,0.30375564]
[1731186647049,3.80251388,3078.0,3077.9,0.30375564]
[1731186647745,3.03221388,3078.0,3077.9,0.30375564]
[1731186647955,2.53309652,3078.0,3077.9,0.30375564]
[1731186649044,2.53309652,3078.0,3077.9,1.07955564]
[1731186649252,1.18113207,3078.0,3077.9,0.30375564]
[1731186649463,1.18113207,3078.0,3077.7,0.7758]
[1731186649746,1.18113207,3078.0,3077.8,0.30388613]
[1731186649747,2.53343062,3078.0,3077.8,0.30388613]
[1731186649949,2.53343062,3078.0,3077.7,0.7758]
[1731186650153,2.53343062,3078.0,3077.8,0.30389684]
[1731186650358,2.46960341,3077.9,3077.7,0.7758]
[1731186650565,1.01432155,3077.8,3077.7,0.7758]
[1731186650854,1.07595236,3077.8,3077.7,1.07969019]
[1731186651928,0.06163081,3077.8,3077.7,1.07969019]
[1731186652135,0.06163081,3077.8,3077.7,0.30389019]
[1731186652917,0.06163081,3077.8,3077.5,0.7758]
[1731186653124,0.67625599,3077.6,3077.5,0.7758]
[1731186653356,0.67625599,3077.6,3077.5,1.07968102]
[1731186653557,0.73781984,3077.6,3077.5,1.07968102]
[1731186656234,0.73781984,3077.6,3077.5,0.7758]
[1731186656435,0.73781984,3077.6,3077.5,1.58627358]
[1731186656677,0.73781984,3077.6,3077.5,1.07972759]
[1731186657235,0.73781984,3077.6,3077.5,1.58627358]
[1731186659479,0.73781984,3077.6,3077.5,1.07972759]
[1731186659978,0.73781984,3077.6,3077.5,1.08013789]
[1731186660178,0.06156385,3077.6,3077.5,1.31128264]
[1731186660945,0.06156385,3077.6,3077.5,2.5430025]
[1731186661278,0.06156385,3077.6,3077.5,2.31185775]
[1731186661478,0.67625599,3077.8,3077.5,2.31185775]
[1731186661479,0.67625599,3077.7,3077.5,2.31185775]
[1731186661652,0.67625599,3077.7,3077.6,0.30433789]
[1731186662057,0.67625599,3077.7,3077.5,2.00751986]
[1731186662292,0.67625599,3077.7,3077.6,0.30431691]
[1731186662461,0.67625599,3077.9,3077.6,0.53550059]
[1731186662789,0.67625599,3078.0,3077.8,1.23171986]
[1731186663010,0.67625599,3078.0,3077.9,0.30431691]
[1731186663671,0.67625599,3078.0,3077.9,0.81136881]
[1731186664002,0.49782977,3078.0,3077.9,0.30431691]
[1731186664201,2.96856371,3078.0,3077.9,0.30431691]
[1731186664962,1.61626516,3078.0,3077.9,0.30431691]
[1731186665168,3.3070202,3078.0,3077.9,0.30431691]
[1731186665364,3.3070202,3078.0,3077.9,0.30426575]
[1731186666006,1.61626516,3078.0,3077.9,0.30426575]
[1731186666163,3.30724943,3078.0,3077.9,0.30426575]
[1731186667079,2.47121225,3078.0,3077.9,0.30426575]
[1731186667276,1.11843539,3078.0,3077.9,0.30426575]
[1731186667610,2.47121225,3078.1,3077.9,0.30426575]
[1731186667781,1.35277686,3078.1,3078.0,0.30426575]
[1731186667982,2.47159881,3078.1,3078.0,0.30426575]
[1731186668773,1.35277686,3078.1,3077.8,0.8271]
[1731186669008,1.01477954,3078.0,3077.9,0.30422264]
[1731186670171,1.01477954,3078.0,3077.9,0.79094483]
[1731186670602,1.11886012,3078.0,3077.9,0.79094483]
[1731186670768,1.01464029,3078.0,3077.9,0.79094483]
[1731186671273,2.47140853,3078.1,3077.9,0.79094483]
[1731186671476,1.11863167,3078.0,3077.8,0.8271]
[1731186671691,1.11863167,3078.0,3077.9,0.79084912]
[1731186672225,1.11863167,3078.0,3077.8,0.8271]
[1731186672502,1.11863167,3078.0,3077.9,0.79084902]
[1731186672709,2.47140853,3078.0,3077.9,0.79084902]
[1731186673572,1.11863167,3078.0,3077.9,0.79084902]
[1731186673772,1.01514313,3078.0,3077.9,0.79084902]
[1731186674813,2.47230745,3078.0,3077.9,0.79084902]
[1731186675570,2.47230745,3078.0,3077.9,0.79073359]
[1731186676893,2.53149005,3078.0,3077.9,0.79073359]
[1731186678694,1.17871319,3078.0,3077.9,0.79073359]
[1731186678905,1.17871319,3078.0,3077.9,0.7907149]
[1731186679879,1.07463393,3078.0,3077.9,1.6071149]
[1731186680100,0.0591826,3078.0,3077.9,2.44855376]
[1731186680303,0.0591826,3078.0,3077.9,1.94168523]
[1731186681707,0.67699932,3078.2,3077.9,1.94168523]
[1731186681918,0.67699932,3078.2,3078.1,1.73831298]
[1731186682215,0.67699932,3078.2,3078.1,2.52859906]
[1731186683326,0.67699932,3078.2,3078.1,2.02200562]
[1731186683490,0.67699932,3078.2,3078.1,2.38996256]
[1731186683688,0.67699932,3078.2,3078.1,2.896556]
[1731186685214,0.67699932,3078.3,3078.1,2.38996256]
[1731186685390,0.67699932,3078.3,3078.2,0.79028576]
[1731186686797,0.67699932,3078.3,3078.2,1.07994136]
[1731186687521,1.01545133,3078.5,3078.2,1.07994136]
[1731186687522,0.67699932,3078.4,3078.2,1.07994136]
[1731186687704,0.67699932,3078.4,3078.3,0.79028576]
[1731186691727,0.73491384,3078.4,3078.3,0.79028576]
[1731186692190,0.73491384,3078.4,3078.1,1.73795187]
[1731186692398,0.73491384,3078.4,3078.3,0.78972193]